Workbook

Sheet 16
K2: Школа №_______________
K3: __________________________
C4: меню на 30 апреля 2025
A5: № р-ры | B5: Наименование блюда | C5: Выход (гр) | D5: б | E5: ж | F5: у | G5: Ккал | H5: Цена (руб) | I5: № р-ры | J5: Наименование блюда | K5: Выход (гр) | L5: б | M5: ж | N5: у | O5: Ккал | P5: Цена (руб)
A6: Завтрак (7-11 лет) для учащихся первой смены | I6: Завтрак (12 лет и старше) родительская плата, бесплатное питание
A7: ттк | B7: икра кабачковая | C7: 60 | D7: 1 | E7: 4.5 | F7: 4.27 | G7: 61 | H7: 17 | I7: ттк | J7: икра кабачковая | K7: 60 | L7: 1 | M7: 5 | N7: 4 | O7: 61 | P7: 17
A8: 439 | B8: Печень тушеная в соусе | C8: 100 | D8: 13.05 | E8: 7.6 | F8: 2.12 | G8: 124.4 | H8: 58 | I8: 439 | J8: печень тушеная в соусе | K8: 100 | L8: 13 | M8: 7.6 | N8: 2.12 | O8: 124.4 | P8: 58
A9: 512 | B9: каша рассыпчатая гречневая | C9: 150 | D9: 7.6 | E9: 6.3 | F9: 39.5 | G9: 250 | H9: 11 | I9: 512 | J9: каша рассыпчатая гречневая | K9: 180 | L9: 9.2 | M9: 7.6 | N9: 47 | O9: 300 | P9: 13
A10: 702 | B10: Напиток из брусники | C10: 200 | D10: 0 | E10: 0 | F10: 25.8 | G10: 98.9 | H10: 9 | I10: 702 | J10: чай с сахаром | K10: 200 | L10: 0.2 | M10: 0 | N10: 15 | O10: 56 | P10: 3
B11: Хлеб пшеничный | C11: 31 | D11: 2.3 | E11: 0.2 | F11: 15 | G11: 71 | H11: 4.12 | J11: Хлеб ржаной | K11: 25 | L11: 1.6 | M11: 1 | N11: 9.6 | O11: 54 | P11: 3
B12: Хлеб ржаной | C12: 25 | D12: 1.6 | E12: 1 | F12: 9.6 | G12: 54 | H12: 3 | J12: хлеб пшеничный | K12: 31 | L12: 2.3 | M12: 0.2 | N12: 15 | O12: 71 | P12: 2
B16: Итого | C16: =SUM(C7:C15) -> 566 | D16: =SUM(D7:D15) -> 26 | E16: =SUM(E7:E15) -> 20 | F16: =SUM(F7:F15) -> 96 | G16: =SUM(G7:G15) -> 659 | H16: =SUM(H7:H11)+H12 -> 102.12 | J16: Итого | K16: =SUM(K7:K15) -> 596 | L16: 27 | M16: 21 | N16: 93 | O16: 666 | P16: 96.00
A17: Обед (7-11 лет) для учащихся второй смены | I17: Завтрак (12 лет и старше) для детей из многодетных семей
A18: ттк | B18: икра кабачковая | C18: 60 | D18: 1 | E18: 4.6 | F18: 8.6 | G18: =(F18*4)+(E18*9)+(D18*4) -> 79.8 | H18: 17
A19: 139 | B19: Суп картофельный с горохом | C19: 200 | D19: 3.44 | E19: 4.16 | F19: 8.24 | G19: 84.16 | H19: 11
A20: 439 | B20: печень тушеная в соусе | C20: 80 | D20: 16 | E20: 13 | F20: 17 | G20: 252 | H20: 40
A21: 512 | B21: каша рассыпчатая гречневая | C21: 150 | D21: 7.6 | E21: 6.3 | F21: 39.5 | G21: 250 | H21: 11
A22: 702 | B22: напиток из брусники ( варенье) | C22: 200 | D22: 0 | E22: 0 | F22: 7 | G22: =(F22*4)+(E22*9)+(D22*4) -> 28 | H22: 9
B23: Хлеб пшеничный | C23: 31 | D23: 2.3 | E23: 0.2 | F23: 15 | G23: 71 | H23: 2.32
B26: Итого | C26: =SUM(C18:C25) -> 721 | D26: =SUM(D18:D25) -> 30 | E26: =SUM(E18:E25) -> 29 | F26: =SUM(F18:F25) -> 96 | G26: =SUM(G18:G25) -> 765 | H26: =SUM(H18:H23) -> 90.32
B28: _________________________________________________________________

Sheet 16 овз
K1: Школа №________
K3: _________________________
B4: меню на 30 апреля 2025
A5: № р-ры | B5: Наименование блюда | C5: Выход (гр) | D5: б | E5: ж | F5: у | G5: Ккал | H5: Цена (руб) | I5: № р-ры | J5: Наименование блюда | K5: Выход (гр) | L5: б | M5: ж | N5: у | O5: Ккал | P5: Цена (руб)
A6: Завтрак (ОВЗ) 1-4 классы | I6: Завтрак (ОВЗ) 5-11 классы
A7: 101 | B7: Помидор свежий | C7: 60 | D7: 0.66 | E7: 0 | F7: 2.52 | G7: 12 | H7: 27 | I7: 101 | J7: Помидор свежий | K7: 60 | L7: 0.66 | M7: 0 | N7: 2.52 | O7: 12 | P7: 27
A8: 288 | B8: Драчена | C8: 200 | D8: 25 | E8: 29 | F8: 10 | G8: =(F8*4)+(E8*9)+(D8*4) -> 401 | H8: 123 | I8: 288 | J8: Драчена | K8: 200 | L8: 25 | M8: 29 | N8: 10 | O8: =(N8*4)+(M8*9)+(L8*4) -> 401 | P8: 123
A9: 685 | B9: Чай с сахаром | C9: 200 | D9: 0 | E9: 0 | F9: 7 | G9: =(F9*4)+(E9*9)+(D9*4) -> 28 | H9: 3 | I9: 685 | J9: Чай с сахаром | K9: 200 | L9: 0 | M9: 0 | N9: 7 | O9: =(N9*4)+(M9*9)+(L9*4) -> 28 | P9: 3
B10: Хлеб пшеничный | C10: 40 | D10: 2.3 | E10: 0.2 | F10: 15 | G10: 71 | H10: 3 | J10: Хлеб пшеничный | K10: 40 | L10: 2.3 | M10: 0.2 | N10: 15 | O10: 71 | P10: 3
C13: =SUM(C7:C12) -> 500 | D13: =SUM(D7:D12) -> 28 | E13: =SUM(E7:E12) -> 29 | F13: =SUM(F7:F12) -> 35 | G13: =SUM(G7:G12) -> 512 | H13: =SUM(H7:H11) -> 156.00 | K13: =SUM(K7:K12) -> 500 | L13: =SUM(L7:L12) -> 28 | M13: =SUM(M7:M12) -> 29 | N13: =SUM(N7:N12) -> 35 | O13: =SUM(O7:O12) -> 512 | P13: =SUM(P7:P11) -> 156.00
A14: Обед (ОВЗ) | I14: Обед (ОВЗ)
A15: ттк | B15: икра кабачковая | C15: 60 | D15: 1 | E15: 4.5 | F15: 4.27 | G15: 61 | H15: 17 | I15: ттк | J15: икра кабачковая | K15: 60 | L15: 1 | M15: 4.5 | N15: 4.27 | O15: 61 | P15: 17
A16: 139 | B16: Суп картофельный с горохом | C16: 250 | D16: 4.3 | E16: 5.2 | F16: 10.3 | G16: =(F16*4)+(E16*9)+(D16*4) -> 105.2 | H16: 13 | I16: 139 | J16: Суп картофельный с горохом | K16: 250 | L16: 4.3 | M16: 5.2 | N16: 10.3 | O16: =(N16*4)+(M16*9)+(L16*4) -> 105.2 | P16: 13
A17: 411 | B17: с мясом отварным | C17: 12.5 | D17: 3.7 | E17: 2.8 | F17: 0 | G17: 38 | H17: 23 | I17: 411 | J17: с мясом отварным | K17: 12.5 | L17: 3.7 | M17: 2.8 | N17: 0 | O17: 38 | P17: 23
A18: 439 | B18: печень тушеная в соусе | C18: 100 | D18: 13 | E18: 8 | F18: 2 | G18: 124 | H18: 58 | I18: 439 | J18: печень тушеная в соусе | K18: 100 | L18: 13 | M18: 8 | N18: 2 | O18: 124 | P18: 58
A19: 512 | B19: каша рассыпчатая гречневая | C19: 180 | D19: 9.2 | E19: 7.6 | F19: 47 | G19: 300 | H19: 13 | I19: 512 | J19: макароны отварные | K19: 180 | L19: 4.16 | M19: 8.44 | N19: 27.7 | O19: 203.46 | P19: 12
A20: 702 | B20: компот с/ф курога | C20: 200 | D20: 1 | E20: 0 | F20: 33 | G20: 130 | H20: 17 | I20: 702 | J20: компот с/ф курога | K20: 200 | L20: 1 | M20: 0 | N20: 33 | O20: 130 | P20: 17
B21: Хлеб пшеничный | C21: 31 | D21: 2.3 | E21: 0.2 | F21: 15 | G21: 71 | H21: 3.09 | J21: Хлеб пшеничный | K21: 31 | L21: 2.3 | M21: 0.2 | N21: 15 | O21: 71 | P21: 3
B22: хлеб ржаной | C22: 28 | D22: 2 | E22: 1 | F22: 10 | G22: 54 | H22: 4.00 | J22: хлеб ржаной | K22: 28 | L22: 2 | M22: 1 | N22: 10 | O22: 54 | P22: 4.00
C23: =SUM(C16:C22) -> 802 | D23: 35 | E23: 24 | F23: 117 | G23: 823 | H23: =SUM(H16:H22)+H15 -> 148.09 | K23: =SUM(K16:K22) -> 802 | L23: 30 | M23: 25 | N23: 98 | P23: =SUM(P16:P22)+P15 -> 147.00
B24: Итого | C24: =C13+C22 -> 528 | D24: 30 | E24: 30 | F24: 44 | G24: 566 | H24: 160.00 | J24: Итого | K24: =K13+K22 -> 528 | L24: 30 | M24: 30 | N24: 44 | O24: 566 | P24: 160.00
B25: Зав. производством ООО "Юнрос"_____________________________
B26: _____________________________________________________________
